fUST/lending_fUST_20250509
["ID","MTS","AMOUNT","RATE_DAILY","PERIOD"]
[360297551,1746724240108,-166.06,0.00011746,2]
[360297552,1746724240117,-218.85,0.00011766,2]
[360297556,1746724240284,-302.26,0.00011766,2]
[360297557,1746724240294,-400.0,0.00011766,2]
[360297558,1746724240303,-400.0,0.00011766,2]
[360297559,1746724240312,-400.0,0.00011766,2]
[360297560,1746724240322,-400.0,0.00011766,2]
[360297561,1746724240331,-400.0,0.00011766,2]
[360297562,1746724240340,-180.2,0.00011766,2]
[360297563,1746724240349,-400.0,0.00011766,2]
[360297564,1746724240358,-486.36,0.00011766,2]
[360297565,1746724240367,-446.06791367,0.00011766,2]
[360297566,1746724240376,-400.0,0.00011766,2]
[360297567,1746724240388,-243.03961094,0.00011766,2]
[360297568,1746724240397,-400.0,0.00011766,2]
[360297569,1746724240407,-400.0,0.00011766,2]
[360297570,1746724240416,-400.0,0.00011766,2]
[360297571,1746724240429,-400.0,0.00011766,2]
[360297572,1746724240439,-400.0,0.00011766,2]
[360297573,1746724240448,-2919.79,0.00011766,2]
[360297574,1746724240457,-400.0,0.00011766,2]
[360297575,1746724240467,-636.47,0.00011766,2]
[360297576,1746724240479,-400.0,0.00011766,2]
[360297577,1746724240488,-447.24,0.00011766,2]
[360297578,1746724240497,-400.0,0.00011769,2]
[360297579,1746724240506,-400.0,0.00011769,2]
[360297580,1746724240515,-377.9,0.00011769,2]
[360297581,1746724240524,-400.0,0.00011769,2]
[360297582,1746724240533,-400.0,0.00011769,2]
[360297583,1746724240542,-400.0,0.00011769,2]
[360297584,1746724240551,-384.00964772,0.00011769,2]
[360297585,1746724240560,-335.05,0.00011769,2]
[360297586,1746724240569,-400.0,0.00011769,2]
[360297587,1746724240579,-400.0,0.00011769,2]
[360297588,1746724240588,-162.42,0.00011769,2]
[360297589,1746724240597,-231.72764447,0.00011769,2]
[360297590,1746724240608,-400.0,0.00011769,2]
[360297591,1746724240618,-400.0,0.00011769,2]
[360297592,1746724240627,-400.0,0.00011769,2]
[360297593,1746724240637,-400.0,0.00011769,2]
[360297594,1746724240646,-400.0,0.00011769,2]
[360297595,1746724240660,-400.0,0.00011769,2]
[360297596,1746724240669,-400.0,0.00011769,2]
[360297597,1746724240679,-400.0,0.00011769,2]
[360297598,1746724240689,-400.0,0.00011769,2]
[360297599,1746724240698,-400.0,0.00011769,2]
[360297600,1746724240708,-400.0,0.00011769,2]
[360297602,1746724240719,-400.0,0.00011769,2]
[360297604,1746724240730,-400.0,0.00011769,2]
[360297606,1746724240740,-544.36764294,0.00011769,2]
[360297607,1746724240749,-400.0,0.00011769,2]
[360297608,1746724240758,-400.0,0.00011769,2]
[360297609,1746724240767,-400.0,0.00011769,2]
[360297611,1746724240777,-400.0,0.00011769,2]
[360297613,1746724240787,-400.0,0.00011769,2]
[360297614,1746724240796,-400.0,0.00011771,2]
[360297615,1746724240806,-151.0,0.00011772,2]
[360297617,1746724240815,-1751.14946752,0.00011873,2]
[360297618,1746724240825,-400.0,0.00012018,2]
[360297619,1746724240834,-524.6,0.00012018,2]
[360297620,1746724240844,-652.78,0.00012018,2]
[360297621,1746724240854,-400.0,0.00012018,2]
[360297622,1746724240864,-400.0,0.00012018,2]
[360297623,1746724240874,-400.0,0.00012018,2]
[360297624,1746724240883,-400.0,0.00012018,2]
[360297625,1746724240893,-400.0,0.00012018,2]
[360297626,1746724240903,-1429.39,0.00012018,2]
[360297627,1746724240912,-400.0,0.00012018,2]
[360297628,1746724240922,-400.0,0.00012019,2]
[360297629,1746724240931,-417.14,0.00012019,2]
[360297630,1746724240941,-400.0,0.00012019,2]
[360297631,1746724240951,-400.0,0.00012019,2]
[360297632,1746724240961,-400.0,0.0001202,2]
[360297633,1746724240971,-188.59,0.0001202,2]
[360297634,1746724240981,-400.0,0.0001204,2]
[360297635,1746724240991,-400.0,0.0001204,2]
[360297636,1746724241000,-400.0,0.0001204,2]
[360297637,1746724241010,-400.0,0.0001204,2]
[360297638,1746724241020,-400.0,0.0001204,2]
[360297639,1746724241029,-400.0,0.0001204,2]
[360297640,1746724241039,-400.0,0.0001204,2]
[360297641,1746724241048,-400.0,0.0001204,2]
[360297642,1746724241058,-400.0,0.0001204,2]
[360297643,1746724241067,-400.0,0.0001204,2]
[360297644,1746724241077,-400.0,0.0001204,2]
[360297645,1746724241086,-400.0,0.0001204,2]
[360297646,1746724241096,-2919.79,0.0001204,2]
[360297647,1746724241105,-400.0,0.0001204,2]
[360297648,1746724241115,-636.47,0.0001204,2]
[360297649,1746724241125,-400.0,0.0001204,2]
[360297650,1746724241135,-400.0,0.00012043,2]
[360297651,1746724241144,-400.0,0.00012043,2]
[360297652,1746724241154,-400.0,0.00012043,2]
[360297653,1746724241163,-400.0,0.00012043,2]
[360297654,1746724241173,-400.0,0.00012043,2]
[360297655,1746724241182,-400.0,0.00012043,2]
[360297656,1746724241191,-400.0,0.00012043,2]
[360297657,1746724241201,-156.65,0.00012043,2]
[360297658,1746724241211,-400.0,0.00012043,2]
[360297659,1746724241222,-182.89,0.00012043,2]
[360297660,1746724241233,-400.0,0.00012043,2]
[360297661,1746724241242,-400.0,0.00012043,2]
[360297662,1746724241251,-400.0,0.00012043,2]
[360297663,1746724241261,-400.0,0.00012043,2]
[360297664,1746724241271,-400.0,0.00012043,2]
[360297665,1746724241280,-400.0,0.00012043,2]
[360297666,1746724241289,-400.0,0.00012043,2]
[360297667,1746724241299,-507.5904331,0.00012043,2]
[360297668,1746724241311,-400.0,0.00012043,2]
[360297669,1746724241320,-400.0,0.00012043,2]
[360297670,1746724241330,-400.0,0.00012043,2]
[360297671,1746724241339,-400.0,0.00012043,2]
[360297672,1746724241348,-500.0,0.00012044,2]
[360297673,1746724241358,-255.19937297,0.00012045,2]
[360297674,1746724241367,-400.0,0.00012045,2]
[360297675,1746724241377,-500.0,0.00012045,2]
[360297676,1746724241386,-151.0,0.00012046,2]
[360297677,1746724241395,-151.0,0.00012046,2]
[360297678,1746724241406,-151.0,0.00012046,2]
[360297679,1746724241415,-151.0,0.0001205,2]
[360297680,1746724241424,-151.0,0.0001205,2]
[360297681,1746724241433,-152.672107,0.000121,2]
[360297682,1746724241442,-500.0,0.00012157,2]
[360297683,1746724241451,-500.0,0.00012157,2]
[360297684,1746724241460,-500.0,0.00012162,2]
[360297685,1746724241469,-500.0,0.00012162,2]
[360297686,1746724241481,-191.4,0.00012166,2]
[360297687,1746724241491,-151.0,0.00012166,2]
[360297688,1746724241500,-151.0,0.00012166,2]
[360297689,1746724241510,-502.50138684,0.00012168,2]
[360297690,1746724241519,-500.0,0.00012168,2]
[360297691,1746724241531,-500.0,0.00012168,2]
[360297692,1746724241542,-500.0,0.00012168,2]
[360297693,1746724241551,-500.0,0.00012168,2]
[360297694,1746724241560,-500.0,0.00012173,2]
[360297695,1746724241569,-151.314841,0.00012183,2]
[360297696,1746724241578,-348.18323385,0.00012183,2]
[360297697,1746724241587,-500.0,0.00012183,2]
[360297698,1746724241598,-500.0,0.00012183,2]
[360297699,1746724241607,-469.52822193,0.00012183,2]
[360297700,1746724241617,-500.0,0.00012191,2]
[360297701,1746724241626,-500.0,0.00012191,2]
[360297702,1746724241636,-500.0,0.00012191,2]
[360297703,1746724241645,-500.0,0.00012196,2]
[360297704,1746724241659,-500.0,0.00012196,2]
[360297705,1746724241669,-400.0,0.00012292,2]
[360297706,1746724241679,-524.6,0.00012292,2]
[360297707,1746724241688,-652.78,0.00012292,2]
[360297708,1746724241698,-400.0,0.00012292,2]
[360297709,1746724241707,-400.0,0.00012292,2]
[360297710,1746724241717,-400.0,0.00012292,2]
[360297711,1746724241726,-400.0,0.00012292,2]
[360297712,1746724241739,-400.0,0.00012292,2]
[360297713,1746724241747,-1429.39,0.00012292,2]
[360297714,1746724241757,-494.31,0.00012292,2]
[360297715,1746724241766,-400.0,0.00012293,2]
[360297716,1746724241775,-150.1,0.00012293,2]
[360297717,1746724241784,-400.0,0.00012293,2]
[360297718,1746724241794,-400.0,0.00012294,2]
[360297719,1746724241803,-344.76034224,0.00012314,2]
[360297720,1746724241812,-400.0,0.00012314,2]
[360297721,1746724241822,-400.0,0.00012314,2]
[360297722,1746724241835,-400.0,0.00012314,2]
[360297723,1746724241848,-400.0,0.00012314,2]
[360297724,1746724241861,-400.0,0.00012314,2]
[360297725,1746724241873,-400.0,0.00012314,2]
[360297726,1746724241884,-400.0,0.00012314,2]
[360297727,1746724241895,-400.0,0.00012314,2]
[360297728,1746724241908,-215.98,0.00012314,2]
[360297729,1746724241921,-400.0,0.00012314,2]
[360297730,1746724241933,-400.0,0.00012314,2]
[360297731,1746724241945,-2919.79,0.00012314,2]
[360297732,1746724241957,-400.0,0.00012314,2]
[360297733,1746724241969,-636.47,0.00012314,2]
[360297734,1746724241984,-400.0,0.00012314,2]
[360297735,1746724241997,-400.0,0.00012317,2]
[360297736,1746724242008,-228.2445997,0.00012317,2]
[360297737,1746724242020,-400.0,0.00012317,2]
[360297738,1746724242032,-365.30133197,0.00012317,2]
[360297739,1746724242044,-400.0,0.00012317,2]
[360297740,1746724242055,-509.95098022,0.00012317,2]
[360297741,1746724242066,-400.0,0.00012317,2]
[360297742,1746724242077,-276.34,0.00012317,2]
[360297743,1746724242088,-400.0,0.00012317,2]
[360297744,1746724242099,-400.0,0.00012317,2]
[360297745,1746724242109,-400.0,0.00012317,2]
[360297746,1746724242121,-400.0,0.00012317,2]
[360297747,1746724242132,-400.0,0.00012317,2]
[360297748,1746724242143,-400.0,0.00012317,2]
[360297749,1746724242154,-400.0,0.00012317,2]
[360297750,1746724242165,-259.86,0.00012317,2]
[360297751,1746724242176,-500.0,0.00012318,2]
[360297752,1746724242186,-151.0,0.00012319,2]
[360297753,1746724242198,-151.0,0.00012319,2]
[360297754,1746724242208,-400.0,0.00012319,2]
[360297755,1746724242218,-151.0,0.00012319,2]
[360297756,1746724242230,-243.011363,0.00012319,2]
[360297757,1746724242241,-177.761798,0.0001232,2]
[360297758,1746724242253,-500.0,0.00012328,2]
[360297759,1746724242264,-760.77,0.00012329,2]
[360297760,1746724242277,-2144.84,0.00012329,2]
[360297761,1746724242288,-1787.37,0.00012329,2]
[360297762,1746724242301,-1489.47,0.00012329,2]
[360297763,1746724242313,-1241.23,0.00012329,2]
[360297764,1746724242325,-1034.35,0.00012329,2]
[360297765,1746724242335,-861.96,0.00012329,2]
[360297766,1746724242346,-718.3,0.00012329,2]
[360297767,1746724242356,-598.59,0.00012329,2]
[360297768,1746724242366,-498.82,0.00012329,2]
[360297769,1746724242377,-415.68,0.00012329,2]
[360297770,1746724242389,-346.4,0.00012329,2]
[360297771,1746724242401,-288.67,0.00012329,2]
[360297772,1746724242414,-240.56,0.00012329,2]
[360297773,1746724242428,-200.47,0.00012329,2]
[360297774,1746724242438,-167.05,0.00012329,2]
[360297775,1746724242449,-835.3,0.00012329,2]
[360297776,1746724242460,-151.0,0.00012329,2]
[360297777,1746724242472,-151.0,0.00012329,2]
[360297778,1746724242486,-152.915247,0.00012329,2]
[360297779,1746724242498,-151.0,0.00012329,2]
[360297780,1746724242509,-151.0,0.00012329,2]
[360297781,1746724242520,-151.0,0.00012329,2]
[360297782,1746724242531,-151.0,0.00012329,2]
[360297783,1746724242541,-1751.14946752,0.00012352,2]
[360297784,1746724242551,-151.0,0.00012372,2]
[360297785,1746724242562,-2714.9,0.00012452,2]
[360297786,1746724242572,-151.0,0.00012452,2]
[360297787,1746724242583,-151.0,0.00012452,2]
[360297788,1746724242594,-151.0,0.00012452,2]
[360297789,1746724242605,-151.0,0.00012452,2]
[360297790,1746724242616,-400.0,0.00012566,2]
[360297791,1746724242627,-524.6,0.00012566,2]
[360297792,1746724242638,-652.78,0.00012566,2]
[360297793,1746724242653,-400.0,0.00012566,2]
[360297794,1746724242664,-400.0,0.00012566,2]
[360297795,1746724242675,-400.0,0.00012566,2]
[360297796,1746724242685,-400.0,0.00012566,2]
[360297797,1746724242697,-186.809053,0.00012566,2]
[360297798,1746724242708,-1429.39,0.00012566,2]
[360297799,1746724242718,-400.0,0.00012567,2]
[360297800,1746724242732,-400.0,0.00012568,2]
[360297801,1746724242743,-160.0,0.0001258,2]
[360297802,1746724242756,-160.0,0.0001258,2]
[360297803,1746724242767,-422.07246323,0.0001258,2]
[360297804,1746724242778,-212.10144473,0.0001258,2]
[360297805,1746724242789,-160.0,0.0001258,2]
[360297806,1746724242800,-160.0,0.0001258,2]
[360297807,1746724242811,-160.0,0.0001258,2]
[360297808,1746724242821,-12615.23506105,0.0001258,2]
[360297809,1746724242832,-842.21467215,0.0001258,2]
[360297810,1746724242843,-151.0,0.00012584,2]
[360297811,1746724242855,-151.0,0.00012584,2]
[360297812,1746724242865,-151.0,0.00012585,2]
[360297813,1746724242876,-151.0,0.00012585,2]
[360297814,1746724242887,-151.0,0.00012585,2]
[360297815,1746724242898,-151.0,0.00012586,2]
[360297816,1746724242909,-151.0,0.00012586,2]
[360297817,1746724242920,-500.0,0.00012588,2]
[360297818,1746724242932,-400.0,0.00012588,2]
[360297819,1746724242943,-173.53,0.00012588,2]
[360297820,1746724242955,-400.0,0.00012588,2]
[360297821,1746724242966,-400.0,0.00012588,2]
[360297822,1746724242977,-400.0,0.00012588,2]
[360297824,1746724242990,-400.0,0.00012588,2]
[360297825,1746724243001,-400.0,0.00012588,2]
[360297826,1746724243012,-400.0,0.00012588,2]
[360297827,1746724243023,-400.0,0.00012588,2]
[360297828,1746724243035,-2919.79,0.00012588,2]
[360297829,1746724243046,-400.0,0.00012588,2]
[360297830,1746724243058,-636.47,0.00012588,2]
[360297831,1746724243068,-151.0,0.00012588,2]
[360297832,1746724243080,-400.0,0.00012588,2]
[360297834,1746724243091,-151.0,0.00012589,2]
[360297835,1746724243102,-151.0,0.00012589,2]
[360297836,1746724243114,-400.0,0.00012591,2]
[360297837,1746724243125,-400.0,0.00012591,2]
[360297838,1746724243136,-151.0,0.00012591,2]
[360297839,1746724243148,-400.0,0.00012591,2]
[360297840,1746724243159,-400.0,0.00012591,2]
[360297841,1746724243170,-407.49423109,0.00012591,2]
[360297842,1746724243181,-400.0,0.00012591,2]
[360297843,1746724243192,-450.87,0.00012591,2]
[360297844,1746724243204,-151.0,0.00012591,2]
[360297845,1746724243215,-400.0,0.00012591,2]
[360297846,1746724243226,-235.92371421,0.00012591,2]
[360297848,1746724243239,-400.0,0.00012591,2]
[360297850,1746724243250,-424.66012699,0.00012591,2]
[360297855,1746724243261,-400.0,0.00012593,2]
[360297858,1746724243272,-151.0,0.00012593,2]
[360297860,1746724243284,-151.0,0.00012594,2]
[360297862,1746724243296,-151.0,0.00012594,2]
[360297864,1746724243307,-151.0,0.00012595,2]
[360297865,1746724243319,-151.0,0.00012595,2]
[360297866,1746724243330,-420.0,0.00012597,2]
[360297867,1746724243341,-151.0,0.00012799,2]
[360297870,1746724243352,-151.0,0.00012799,2]
[360297872,1746724243363,-151.0,0.00012799,2]
[360297874,1746724243374,-1751.14946752,0.00012831,2]
[360297876,1746724243385,-500.0,0.0001284,2]
[360297877,1746724243396,-400.0,0.0001284,2]
[360297879,1746724243407,-524.6,0.0001284,2]
[360297881,1746724243419,-652.78,0.0001284,2]
[360297882,1746724243430,-400.0,0.0001284,2]
[360297883,1746724243441,-400.0,0.0001284,2]
[360297884,1746724243452,-400.0,0.0001284,2]
[360297885,1746724243463,-400.0,0.0001284,2]
[360297886,1746724243473,-1429.39,0.0001284,2]
[360297887,1746724243483,-400.0,0.00012841,2]
[360297888,1746724243492,-400.0,0.00012842,2]
[360297889,1746724243501,-500.0,0.00012844,2]
[360297890,1746724243511,-500.0,0.00012844,2]
[360297891,1746724243698,-400.0,0.00012862,2]
[360297892,1746724243713,-400.0,0.00012862,2]
[360297893,1746724243724,-217.8,0.00012862,2]
[360297894,1746724243734,-400.0,0.00012862,2]
[360297895,1746724243744,-400.0,0.00012862,2]
[360297896,1746724243753,-400.0,0.00012862,2]
[360297897,1746724243763,-400.0,0.00012862,2]
[360297898,1746724243772,-430.13309641,0.00012862,2]
[360297899,1746724243782,-2919.79,0.00012862,2]
[360297900,1746724243792,-400.0,0.00012862,2]
[360297901,1746724243801,-636.47,0.00012862,2]
[360297902,1746724243810,-400.0,0.00012862,2]
[360297903,1746724243819,-369.98,0.00012865,2]
[360297904,1746724243829,-400.0,0.00012865,2]
[360297905,1746724243838,-400.0,0.00012865,2]
[360297906,1746724243848,-400.0,0.00012865,2]
[360297907,1746724243857,-400.0,0.00012865,2]
[360297908,1746724243866,-400.0,0.00012865,2]
[360297909,1746724243876,-400.0,0.00012865,2]
[360297910,1746724243885,-400.0,0.00012867,2]
[360297911,1746724243895,-151.0,0.00012867,2]
[360297912,1746724243905,-151.0,0.00012868,2]
[360297913,1746724243914,-151.0,0.00012868,2]
[360297914,1746724243923,-151.0,0.00012868,2]
[360297915,1746724243932,-151.0,0.00012869,2]
[360297916,1746724243942,-151.0,0.00012869,2]
[360297917,1746724243951,-151.149082,0.00012869,2]
[360297918,1746724243960,-151.149082,0.00012869,2]
[360297919,1746724243970,-151.0,0.00012869,2]
[360297920,1746724243980,-151.0,0.00012869,2]
[360297921,1746724243990,-151.0,0.00012869,2]
[360297922,1746724243999,-500.0,0.00012899,2]
[360297923,1746724244009,-151.0,0.000129,2]
[360297924,1746724244018,-151.0,0.000129,2]
[360297925,1746724244027,-6946.7222098,0.000129,2]
[360297926,1746724244037,-214.96927,0.00013064,2]
[360297927,1746724244046,-400.0,0.00013114,2]
[360297928,1746724244055,-524.6,0.00013114,2]
[360297929,1746724244065,-652.78,0.00013114,2]
[360297930,1746724244074,-400.0,0.00013114,2]
[360297931,1746724244083,-400.0,0.00013114,2]
[360297932,1746724244093,-294.8,0.00013114,2]
[360297933,1746724244102,-400.0,0.00013114,2]
[360297934,1746724244114,-1429.39,0.00013114,2]
[360297935,1746724244125,-400.0,0.00013115,2]
[360297936,1746724244135,-217.16,0.00013116,2]
[360297937,1746724244153,-400.0,0.00013136,2]
[360297938,1746724244166,-521.11,0.00013136,2]
[360297939,1746724244177,-400.0,0.00013136,2]
[360297940,1746724244186,-400.0,0.00013136,2]
[360297941,1746724244198,-400.0,0.00013136,2]
[360297942,1746724244208,-400.0,0.00013136,2]
[360297943,1746724244217,-2919.79,0.00013136,2]
[360297944,1746724244229,-400.0,0.00013136,2]
[360297945,1746724244239,-636.47,0.00013136,2]
[360297946,1746724244250,-151.0,0.00013136,2]
[360297947,1746724244260,-400.0,0.00013136,2]
[360297948,1746724244270,-400.0,0.00013139,2]
[360297949,1746724244280,-400.0,0.00013139,2]
[360297950,1746724244290,-400.0,0.00013139,2]
[360297951,1746724244299,-400.0,0.00013139,2]
[360297952,1746724244309,-400.0,0.00013139,2]
[360297953,1746724244319,-400.0,0.00013139,2]
[360297954,1746724244329,-500.0,0.0001314,2]
[360297955,1746724244339,-400.0,0.00013141,2]
[360297956,1746724244349,-151.0,0.00013141,2]
[360297957,1746724244359,-152.000618,0.00013141,2]
[360297958,1746724244368,-151.0,0.00013141,2]
[360297959,1746724244378,-6946.72220978,0.00013141,2]
[360297960,1746724244389,-151.0,0.00013142,2]
[360297961,1746724244399,-151.0,0.00013142,2]
[360297962,1746724244409,-151.0,0.00013143,2]
[360297963,1746724244419,-151.0,0.00013143,2]
[360297964,1746724244430,-151.0,0.00013146,2]
[360297965,1746724244440,-151.0,0.00013227,2]
[360297966,1746724244450,-1751.14946752,0.0001331,2]
[360297967,1746724244460,-6946.72220978,0.00013383,2]
[360297968,1746724244469,-151.0,0.00013383,2]
[360297969,1746724244480,-151.0,0.00013383,2]
[360297970,1746724244491,-151.0,0.00013383,2]
[360297971,1746724244501,-500.0,0.00013388,2]
[360297972,1746724244511,-400.0,0.00013388,2]
[360297973,1746724244520,-524.6,0.00013388,2]
[360297974,1746724244530,-652.78,0.00013388,2]
[360297975,1746724244541,-184.85,0.00013388,2]
[360297976,1746724244550,-304.22945187,0.00013388,2]
[360297977,1746724244560,-400.0,0.00013388,2]
[360297978,1746724244570,-1429.39,0.00013388,2]
[360297979,1746724244580,-400.0,0.00013389,2]
[360297980,1746724244590,-205.58927229,0.0001341,2]
[360297981,1746724244601,-151.0,0.0001341,2]
[360297982,1746724244612,-400.0,0.0001341,2]
[360297983,1746724244623,-388.86,0.0001341,2]
[360297984,1746724244633,-400.0,0.0001341,2]
[360297985,1746724244643,-400.0,0.0001341,2]
[360297986,1746724244657,-2919.79,0.0001341,2]
[360297987,1746724244667,-400.0,0.0001341,2]
[360297988,1746724244678,-636.47,0.0001341,2]
[360297989,1746724244688,-400.0,0.0001341,2]
[360297990,1746724244697,-400.0,0.00013413,2]
[360297991,1746724244707,-400.0,0.00013413,2]
[360297992,1746724244716,-400.0,0.00013413,2]
[360297993,1746724244727,-405.57,0.00013413,2]
[360297994,1746724244738,-400.0,0.00013413,2]
[360297995,1746724244748,-400.0,0.00013415,2]
[360297996,1746724244757,-151.0,0.00013415,2]
[360297997,1746724244767,-151.0,0.00013417,2]
[360297998,1746724244777,-151.0,0.00013417,2]
[360297999,1746724244787,-155.196221,0.00013417,2]
[360298000,1746724244796,-151.0,0.00013419,2]
[360298001,1746724244806,-151.0,0.00013419,2]
[360298002,1746724244816,-151.149082,0.00013604,2]
[360298003,1746724244826,-151.149082,0.00013604,2]
[360298004,1746724244835,-500.0,0.00013623,2]
[360298005,1746724244845,-6946.72220978,0.00013624,2]
[360298006,1746724244855,-400.0,0.00013662,2]
[360298007,1746724244864,-524.6,0.00013662,2]
[360298008,1746724244874,-652.78,0.00013662,2]
[360298009,1746724244883,-400.0,0.00013662,2]
[360298010,1746724244893,-1429.39,0.00013662,2]
[360298011,1746724244903,-400.0,0.00013684,2]
[360298012,1746724244912,-287.8062445,0.00013684,2]
[360298013,1746724244921,-400.0,0.00013684,2]
[360298014,1746724244931,-2919.79,0.00013684,2]
[360298015,1746724244940,-370.46,0.00013684,2]
[360298016,1746724244950,-636.47,0.00013684,2]
[360298017,1746724244960,-400.0,0.00013684,2]
[360298018,1746724244970,-400.0,0.00013687,2]
[360298019,1746724244981,-400.0,0.00013687,2]
[360298020,1746724244991,-400.0,0.00013687,2]
[360298021,1746724245000,-400.0,0.00013687,2]
[360298022,1746724245010,-151.0,0.00013687,2]
[360298023,1746724245019,-219.36291705,0.00013689,2]
[360298024,1746724245028,-161.795106,0.00013689,2]
[360298025,1746724245038,-151.0,0.00013689,2]
[360298026,1746724245048,-151.0,0.00013691,2]
[360298027,1746724245057,-151.0,0.00013691,2]
[360298028,1746724245067,-1035.24386518,0.00013694,2]
[360298029,1746724245076,-151.0,0.00013694,2]
[360298030,1746724245085,-151.0,0.00013694,2]
[360298031,1746724245095,-151.0,0.00013694,2]
[360298032,1746724245104,-1000.0,0.00013698,2]
[360298033,1746724245115,-500.0,0.00013698,2]
[360298034,1746724245125,-151.0,0.00013699,2]
[360298035,1746724245136,-151.0,0.00013699,2]
[360298036,1746724245147,-151.0,0.00013699,2]
[360298037,1746724245159,-151.0,0.00013699,2]
[360298038,1746724245174,-277.505346,0.00013699,2]
[360298039,1746724245185,-151.0,0.00013699,2]
[360298040,1746724245195,-151.0,0.00013699,2]
[360298041,1746724245205,-151.0,0.00013699,2]
[360298042,1746724245214,-488.355369,0.00013699,2]
[360298043,1746724245224,-178.035568,0.00013699,2]
[360298044,1746724245236,-178.035568,0.00013699,2]
[360298045,1746724245249,-178.035568,0.00013699,2]
[360298046,1746724245259,-178.035568,0.00013699,2]
[360298047,1746724245269,-178.035568,0.00013699,2]
[360298048,1746724245279,-178.035568,0.00013699,2]
[360298049,1746724245288,-178.035568,0.00013699,2]
[360298050,1746724245298,-178.035568,0.00013699,2]
[360298051,1746724245308,-178.035568,0.00013699,2]
[360298052,1746724245318,-178.035568,0.00013699,2]
[360298053,1746724245328,-151.0,0.00013699,2]
[360298054,1746724245337,-151.0,0.00013699,2]
[360298055,1746724245347,-151.0,0.00013699,2]
[360298056,1746724245356,-151.0,0.00013699,2]
[360298057,1746724245366,-500.0,0.00013699,2]
[360298058,1746724245375,-151.0,0.00013699,2]
[360298059,1746724245386,-500.0,0.00013699,2]
[360298060,1746724245395,-500.0,0.00013699,2]
[360298061,1746724245406,-151.0,0.00013699,2]
[360298062,1746724245416,-500.0,0.00013699,2]
[360298063,1746724245426,-185.90379945,0.00013699,2]
[360298064,1746724245437,-500.0,0.00013699,2]
[360298065,1746724245447,-500.0,0.00013699,2]
[360298066,1746724245456,-500.0,0.00013699,2]
[360298067,1746724245466,-151.0,0.00013699,2]
[360298068,1746724245475,-151.0,0.00013699,2]
[360298069,1746724245489,-151.0,0.00013699,2]
[360298070,1746724245499,-500.0,0.00013699,2]
[360298071,1746724245509,-228.84681859,0.00013699,2]
[360298072,1746724245519,-202.65916694,0.00013699,2]
[360298073,1746724245529,-151.0,0.00013699,2]
[360298074,1746724245538,-500.0,0.00013699,2]
[360298075,1746724245548,-151.0,0.00013699,2]
[360298076,1746724245558,-500.0,0.00013699,2]
[360298077,1746724245568,-151.0,0.00013699,2]
[360298078,1746724245578,-500.0,0.00013699,2]
[360298079,1746724245589,-322.68598704,0.00013699,2]